Workbook

Sheet FabaoConfig
A1: ID | B1: ItemID | C1: name | D1: Type | E1: magicAttribute | F1: model | G1: fragmentID | I1: ShuxingIDs | J1: ShuxingPara | K1: SkillGroupID
A2: int | B2: int | C2: string | D2: int | E2: int | F2: string | G2: int | I2: int[] | J2: int[] | K2: int
B4: 法宝对应道具ID | C4: 法宝名称 | D4: 法宝类型 1攻击型 2防御型 | E4: 法宝类型 1=金 2=木 4=水 8=火 16=土 | F4: 模型名称 | G4: 法宝对应碎片道具ID | H4: 法宝默认星级 | I4: 法宝基础属性类型 | J4: 法宝基础属性倍率 | K4: 法宝技能ID组 | L4: 生命 | M4: 防御 | N4: 攻击
A5: 10001 | B5: 10001 | C5: 神龙鼎 | D5: 1 | E5: 1 | F5: fb_ding1 | G5: 11001 | H5: 1 | I5: =_xlfn.TEXTJOIN(";",1,IF(L5="","",1),IF(M5="","",2),IF(N5="","",3)) -> 2;3 | J5: =_xlfn.TEXTJOIN(";",1,L5:N5) -> 50;50 | K5: 3101 | M5: 50 | N5: 50
B6: 10002 | C6: 破天斧 | D6: 1 | E6: 1 | F6: fb_xuanguidun | G6: 11002 | H6: 1 | I6: =_xlfn.TEXTJOIN(";",1,IF(L6="","",1),IF(M6="","",2),IF(N6="","",3)) ->  | J6: =_xlfn.TEXTJOIN(";",1,L6:N6) ->  | K6: 3102
A7: 10003 | B7: 10003 | C7: 翡翠葫芦 | D7: 1 | E7: 2 | F7: fb_feicuihulu | G7: 11003 | H7: 1 | I7: 1;2 | J7: 75;25 | K7: 3201 | L7: 75 | M7: 25
A8: 10004 | B8: 10004 | C8: 混沌珠 | D8: 1 | E8: 2 | F8: fb_3202 | G8: 11004 | H8: 1 | I8: 1;3 | J8: 25;75 | K8: 3202 | L8: 25 | N8: 75
B9: 10005 | C9: 琉璃宝塔 | D9: 1 | E9: 2 | F9: fb_linglongta | G9: 11005 | H9: 1 | K9: 3203
A10: 10006 | B10: 10006 | C10: 九幽镇魂瓶 | D10: 1 | E10: 4 | F10: fb_BossPing | G10: 11006 | H10: 1 | I10: 1;3 | J10: 50;50 | K10: 3301 | L10: 50 | N10: 50
B11: 10007 | C11: 玉莲守心灯 | D11: 1 | E11: 4 | F11: fb_3302 | G11: 11007 | H11: 1 | K11: 3302
A12: 10008 | B12: 10008 | C12: 融灵塔 | D12: 1 | E12: 8 | F12: fb_3401 | G12: 11008 | H12: 1 | I12: 2;3 | J12: 75;25 | K12: 3401 | M12: 75 | N12: 25
B13: 10009 | C13: 禁元珠 | D13: 1 | E13: 8 | F13: fb_BossPing | G13: 11009 | H13: 1 | K13: 3402
A14: 10010 | B14: 10010 | C14: 玄龟盾 | D14: 1 | E14: 16 | F14: fb_xuanguidun | G14: 11010 | H14: 1 | I14: 1;2 | J14: 25;75 | K14: 3501 | L14: 25 | M14: 75
B15: 10011 | C15: 天殇血刃剑 | D15: 1 | E15: 16 | F15: fb_ding1 | G15: 11011 | H15: 1 | K15: 3502

Sheet FabaoPowerupConfig
A1: ID | B1: Power | C1: HP | D1: DEF | E1: ATK | G1: NeedLv | H1: PowerupItemIDs | I1: PowerupItemCosts | N1: PromotePieceNum | O1: SkillLevel
A2: int | B2: int | C2: float | D2: float | E2: float | G2: int | H2: int[] | I2: int[] | N2: int[] | O2: int
A4: ID序列 | B4: 法宝的基础强度成长 | C4: 法宝的生命标准成长1 | D4: 法宝的防御标准成长2 | E4: 法宝的攻击标准成长3 | F4: 实力等级 | G4: 升级所需修为等级 | H4: 强化所需道具ID | I4: 强化所需道具数量 | J4: 道具1 | K4: 数量1 | L4: 道具2 | M4: 数量2 | N4: 突破所需对应碎片数量 | O4: 对应的技能等级 | P4: 1.26
A5: 1 | B5: 100 | C5: =E5*20*(1+VLOOKUP(F5,[1]主表!$A:$F,6,FALSE)) -> 301 | D5: =E5*0.5 -> 7.5 | E5: =VLOOKUP(F5,[1]主表!$A:$B,2,FALSE)*[1]主表!$D$1 -> 15 | F5: 1 | G5: 11 | H5: =_xlfn.TEXTJOIN(";",1,J5,L5) -> 1001;1006 | I5: =_xlfn.TEXTJOIN(";",1,K5,M5) -> 100;100 | J5: 1001 | K5: 100 | L5: 1006 | M5: 100 | N5: -1 | O5: 1
A6: 2 | B6: =ROUND(B5*P$4,0) -> 126 | C6: =E6*20*(1+VLOOKUP(F6,[1]主表!$A:$F,6,FALSE)) -> 378.2 | D6: =E6*0.5 -> 9.15 | E6: =VLOOKUP(F6,[1]主表!$A:$B,2,FALSE)*[1]主表!$D$1 -> 18.3 | F6: 10 | G6: 21 | H6: =_xlfn.TEXTJOIN(";",1,J6,L6) -> 1001;1006 | I6: =_xlfn.TEXTJOIN(";",1,K6,M6) -> 100;100 | J6: 1001 | K6: 100 | L6: 1006 | M6: 100 | N6: -1 | O6: 1
A7: 3 | B7: =ROUND(B6*P$4,0) -> 159 | C7: =E7*20*(1+VLOOKUP(F7,[1]主表!$A:$F,6,FALSE)) -> 480 | D7: 11.25 | E7: =VLOOKUP(F7,[1]主表!$A:$B,2,FALSE)*[1]主表!$D$1 -> 22.5 | F7: 20 | G7: 31 | H7: 1001;1006 | I7: 100;100 | J7: 1001 | K7: 100 | L7: 1006 | M7: 100 | N7: 10 | O7: 1
A8: 4 | B8: 200 | C8: =E8*20*(1+VLOOKUP(F8,[1]主表!$A:$F,6,FALSE)) -> 646.8 | D8: 14.7 | E8: =VLOOKUP(F8,[1]主表!$A:$B,2,FALSE)*[1]主表!$D$1 -> 29.4 | F8: 30 | G8: 41 | H8: 1001;1006 | I8: 100;100 | J8: 1001 | K8: 100 | L8: 1006 | M8: 100 | N8: -1 | O8: 1
A9: 5 | B9: 252 | C9: =E9*20*(1+VLOOKUP(F9,[1]主表!$A:$F,6,FALSE)) -> 822.8 | D9: 18.15 | E9: =VLOOKUP(F9,[1]主表!$A:$B,2,FALSE)*[1]主表!$D$1 -> 36.3 | F9: 40 | G9: 51 | H9: 1001;1006 | I9: 100;100 | J9: 1001 | K9: 100 | L9: 1006 | M9: 100 | N9: -1 | O9: 1 | S9: 200 | T9: 150 | U9: =S9/T9 -> 1.333333333
A10: 6 | B10: 318 | C10: =E10*20*(1+VLOOKUP(F10,[1]主表!$A:$F,6,FALSE)) -> 1050 | D10: 22.5 | E10: =VLOOKUP(F10,[1]主表!$A:$B,2,FALSE)*[1]主表!$D$1 -> 45 | F10: 50 | G10: 61 | H10: 1001;1006 | I10: 100;100 | J10: 1001 | K10: 100 | L10: 1006 | M10: 100 | N10: 10 | O10: 1 | S10: 16 | T10: 9 | U10: =S10/T10 -> 1.777777778
A11: 7 | B11: 401 | C11: =E11*20*(1+VLOOKUP(F11,[1]主表!$A:$F,6,FALSE)) -> 1411.2 | D11: 29.4 | E11: =VLOOKUP(F11,[1]主表!$A:$B,2,FALSE)*[1]主表!$D$1 -> 58.8 | F11: 60 | G11: 71 | H11: 1001;1006 | I11: 100;100 | J11: 1001 | K11: 100 | L11: 1006 | M11: 100 | N11: -1 | O11: 1
A12: 8 | B12: 505 | C12: =E12*20*(1+VLOOKUP(F12,[1]主表!$A:$F,6,FALSE)) -> 1798.2 | D12: 36.45 | E12: =VLOOKUP(F12,[1]主表!$A:$B,2,FALSE)*[1]主表!$D$1 -> 72.9 | F12: 70 | G12: 81 | H12: 1001;1006 | I12: 100;100 | J12: 1001 | K12: 100 | L12: 1006 | M12: 100 | N12: -1 | O12: 1
A13: 9 | B13: 636 | C13: =E13*20*(1+VLOOKUP(F13,[1]主表!$A:$F,6,FALSE)) -> 2280 | D13: 45 | E13: =VLOOKUP(F13,[1]主表!$A:$B,2,FALSE)*[1]主表!$D$1 -> 90 | F13: 80 | G13: 91 | H13: 1001;1006 | I13: 100;100 | J13: 1001 | K13: 100 | L13: 1006 | M13: 100 | N13: 10 | O13: 1
A14: 10 | B14: 801 | C14: =E14*20*(1+VLOOKUP(F14,[1]主表!$A:$F,6,FALSE)) -> 3065.4 | D14: 58.95 | E14: =VLOOKUP(F14,[1]主表!$A:$B,2,FALSE)*[1]主表!$D$1 -> 117.9 | F14: 90 | G14: 101 | H14: 1001;1006 | I14: 100;100 | J14: 1001 | K14: 100 | L14: 1006 | M14: 100 | N14: -1 | O14: 1
A15: 11 | B15: 1009 | C15: =E15*20*(1+VLOOKUP(F15,[1]主表!$A:$F,6,FALSE)) -> 3880 | D15: 72.75 | E15: =VLOOKUP(F15,[1]主表!$A:$B,2,FALSE)*[1]主表!$D$1 -> 145.5 | F15: 100 | G15: 111 | H15: 1001;1006 | I15: 100;100 | J15: 1001 | K15: 100 | L15: 1006 | M15: 100 | N15: -1 | O15: 1
A16: 12 | B16: 1271 | C16: =E16*20*(1+VLOOKUP(F16,[1]主表!$A:$F,6,FALSE)) -> 4911.8 | D16: 89.85 | E16: =VLOOKUP(F16,[1]主表!$A:$B,2,FALSE)*[1]主表!$D$1 -> 179.7 | F16: 110 | G16: 121 | H16: 1001;1006 | I16: 100;100 | J16: 1001 | K16: 100 | L16: 1006 | M16: 100 | N16: 10 | O16: 1
A17: 13 | B17: 1601 | C17: =E17*20*(1+VLOOKUP(F17,[1]主表!$A:$F,6,FALSE)) -> 6594 | D17: 117.75 | E17: =VLOOKUP(F17,[1]主表!$A:$B,2,FALSE)*[1]主表!$D$1 -> 235.5 | F17: 120 | G17: 131 | H17: 1001;1006 | I17: 100;100 | J17: 1001 | K17: 100 | L17: 1006 | M17: 100 | N17: -1 | O17: 1
A18: 14 | B18: 2017 | C18: =E18*20*(1+VLOOKUP(F18,[1]主表!$A:$F,6,FALSE)) -> 8333.4 | D18: 145.35 | E18: =VLOOKUP(F18,[1]主表!$A:$B,2,FALSE)*[1]主表!$D$1 -> 290.7 | F18: 130 | G18: 141 | H18: 1001;1006 | I18: 100;100 | J18: 1001 | K18: 100 | L18: 1006 | M18: 100 | N18: -1 | O18: 1
A19: 15 | B19: 2541 | C19: =E19*20*(1+VLOOKUP(F19,[1]主表!$A:$F,6,FALSE)) -> 10524.8 | D19: 179.4 | E19: =VLOOKUP(F19,[1]主表!$A:$B,2,FALSE)*[1]主表!$D$1 -> 358.8 | F19: 140 | G19: 151 | H19: 1001;1006 | I19: 100;100 | J19: 1001 | K19: 100 | L19: 1006 | M19: 100 | N19: 10 | O19: 1
A20: 16 | B20: 3202 | C20: =E20*20*(1+VLOOKUP(F20,[1]主表!$A:$F,6,FALSE)) -> 14112 | D20: 235.2 | E20: =VLOOKUP(F20,[1]主表!$A:$B,2,FALSE)*[1]主表!$D$1 -> 470.4 | F20: 150 | G20: 161 | H20: 1001;1006 | I20: 100;100 | J20: 1001 | K20: 100 | L20: 1006 | M20: 100 | N20: -1 | O20: 1
A21: 17 | B21: 4035 | C21: =E21*20*(1+VLOOKUP(F21,[1]主表!$A:$F,6,FALSE)) -> 17811.2 | D21: 290.4 | E21: =VLOOKUP(F21,[1]主表!$A:$B,2,FALSE)*[1]主表!$D$1 -> 580.8 | F21: 160 | G21: 171 | H21: 1001;1006 | I21: 100;100 | J21: 1001 | K21: 100 | L21: 1006 | M21: 100 | N21: -1 | O21: 1
A22: 18 | B22: 5084 | C22: =E22*20*(1+VLOOKUP(F22,[1]主表!$A:$F,6,FALSE)) -> 22475.4 | D22: 358.65 | E22: =VLOOKUP(F22,[1]主表!$A:$B,2,FALSE)*[1]主表!$D$1 -> 717.3 | F22: 170 | G22: 181 | H22: 1001;1006 | I22: 100;100 | J22: 1001 | K22: 100 | L22: 1006 | M22: 100 | N22: 10 | O22: 1
A23: 19 | B23: 6406 | C23: =E23*20*(1+VLOOKUP(F23,[1]主表!$A:$F,6,FALSE)) -> 30086.4 | D23: 470.1 | E23: =VLOOKUP(F23,[1]主表!$A:$B,2,FALSE)*[1]主表!$D$1 -> 940.2 | F23: 180 | G23: 191 | H23: 1001;1006 | I23: 100;100 | J23: 1001 | K23: 100 | L23: 1006 | M23: 100 | N23: -1 | O23: 1
A24: 20 | B24: 8072 | C24: =E24*20*(1+VLOOKUP(F24,[1]主表!$A:$F,6,FALSE)) -> 37926 | D24: 580.5 | E24: =VLOOKUP(F24,[1]主表!$A:$B,2,FALSE)*[1]主表!$D$1 -> 1161 | F24: 190 | G24: 201 | H24: 1001;1006 | I24: 100;100 | J24: 1001 | K24: 100 | L24: 1006 | M24: 100 | N24: -1 | O24: 1
A25: 21 | B25: 10171 | C25: =E25*20*(1+VLOOKUP(F25,[1]主表!$A:$F,6,FALSE)) -> 47780 | D25: 716.7 | E25: =VLOOKUP(F25,[1]主表!$A:$B,2,FALSE)*[1]主表!$D$1 -> 1433.4 | F25: 200 | G25: 211 | H25: 1001;1006 | I25: 100;100 | J25: 1001 | K25: 100 | L25: 1006 | M25: 100 | N25: 10 | O25: 1
A26: 22 | B26: 12815 | C26: =E26*20*(1+VLOOKUP(F26,[1]主表!$A:$F,6,FALSE)) -> 63892.8 | D26: 939.6 | E26: =VLOOKUP(F26,[1]主表!$A:$B,2,FALSE)*[1]主表!$D$1 -> 1879.2 | F26: 210 | G26: 221 | H26: 1001;1006 | I26: 100;100 | J26: 1001 | K26: 100 | L26: 1006 | M26: 100 | N26: -1 | O26: 1
A27: 23 | B27: 16147 | C27: =E27*20*(1+VLOOKUP(F27,[1]主表!$A:$F,6,FALSE)) -> 80433.6 | D27: 1160.1 | E27: =VLOOKUP(F27,[1]主表!$A:$B,2,FALSE)*[1]主表!$D$1 -> 2320.2 | F27: 220 | G27: 231 | H27: 1001;1006 | I27: 100;100 | J27: 1001 | K27: 100 | L27: 1006 | M27: 100 | N27: -1 | O27: 1
A28: 24 | B28: 20345 | C28: =E28*20*(1+VLOOKUP(F28,[1]主表!$A:$F,6,FALSE)) -> 101219.4 | D28: 1432.35 | E28: =VLOOKUP(F28,[1]主表!$A:$B,2,FALSE)*[1]主表!$D$1 -> 2864.7 | F28: 230 | G28: 241 | H28: 1001;1006 | I28: 100;100 | J28: 1001 | K28: 100 | L28: 1006 | M28: 100 | N28: 10 | O28: 1
A29: 25 | B29: 25635 | C29: =E29*20*(1+VLOOKUP(F29,[1]主表!$A:$F,6,FALSE)) -> 135194.4 | D29: 1877.7 | E29: =VLOOKUP(F29,[1]主表!$A:$B,2,FALSE)*[1]主表!$D$1 -> 3755.4 | F29: 240 | G29: 251 | H29: 1001;1006 | I29: 100;100 | J29: 1001 | K29: 100 | L29: 1006 | M29: 100 | N29: -1 | O29: 1
A30: 26 | B30: 32300 | C30: =E30*20*(1+VLOOKUP(F30,[1]主表!$A:$F,6,FALSE)) -> 170016 | D30: 2318.4 | E30: =VLOOKUP(F30,[1]主表!$A:$B,2,FALSE)*[1]主表!$D$1 -> 4636.8 | F30: 250 | G30: 261 | H30: 1001;1006 | I30: 100;100 | J30: 1001 | K30: 100 | L30: 1006 | M30: 100 | N30: -1 | O30: 1
A31: 27 | B31: 40698 | C31: =E31*20*(1+VLOOKUP(F31,[1]主表!$A:$F,6,FALSE)) -> 213740.8 | D31: 2862.6 | E31: =VLOOKUP(F31,[1]主表!$A:$B,2,FALSE)*[1]主表!$D$1 -> 5725.2 | F31: 260 | G31: 271 | H31: 1001;1006 | I31: 100;100 | J31: 1001 | K31: 100 | L31: 1006 | M31: 100 | N31: 10 | O31: 1
A32: 28 | B32: 51279 | C32: =E32*20*(1+VLOOKUP(F32,[1]主表!$A:$F,6,FALSE)) -> 285205.2 | D32: 3752.7 | E32: =VLOOKUP(F32,[1]主表!$A:$B,2,FALSE)*[1]主表!$D$1 -> 7505.4 | F32: 270 | G32: 281 | H32: 1001;1006 | I32: 100;100 | J32: 1001 | K32: 100 | L32: 1006 | M32: 100 | N32: -1 | O32: 1
A33: 29 | B33: 64612 | C33: =E33*20*(1+VLOOKUP(F33,[1]主表!$A:$F,6,FALSE)) -> 358324 | D33: 4633.5 | E33: =VLOOKUP(F33,[1]主表!$A:$B,2,FALSE)*[1]主表!$D$1 -> 9267 | F33: 280 | G33: 291 | H33: 1001;1006 | I33: 100;100 | J33: 1001 | K33: 100 | L33: 1006 | M33: 100 | N33: -1 | O33: 1
A34: 30 | B34: 81411 | C34: =E34*20*(1+VLOOKUP(F34,[1]主表!$A:$F,6,FALSE)) -> 450040.2 | D34: 5720.85 | E34: =VLOOKUP(F34,[1]主表!$A:$B,2,FALSE)*[1]主表!$D$1 -> 11441.7 | F34: 290 | G34: 300 | H34: 1001;1006 | I34: 100;100 | J34: 1001 | K34: 100 | L34: 1006 | M34: 100 | N34: 10 | O34: 1
A35: 31 | B35: 102578 | C35: =E35*20*(1+VLOOKUP(F35,[1]主表!$A:$F,6,FALSE)) -> 600000 | D35: 7500 | E35: =VLOOKUP(F35,[1]主表!$A:$B,2,FALSE)*[1]主表!$D$1 -> 15000 | F35: 300 | G35: 310 | H35: =_xlfn.TEXTJOIN(";",1,J35,L35) -> 1001;1006 | I35: =_xlfn.TEXTJOIN(";",1,K35,M35) -> 100;100 | J35: 1001 | K35: 100 | L35: 1006 | M35: 100 | N35: -1 | O35: 1
